bitfinex-derivatives/quotes_SOLF0:USTF0_20230103
["timestamp","ask_amount","ask_price","bid_price","bid_amount"]
[1672708411020,3.99,11.257,11.251,0.06624144]
[1672708411334,3.99,11.257,11.25,4.05651732]
[1672708427205,3.99,11.255,11.25,0.06651732]
[1672708427519,3.99,11.254,11.249,0.06361703]
[1672708427730,3.99,11.254,11.248,0.06269893]
[1672708431301,3.95,11.25,11.248,0.06269893]
[1672708431621,3.95,11.249,11.245,0.0658621]
[1672708431831,3.99,11.247,11.243,0.06488165]
[1672708432041,3.99,11.247,11.241,4.05087911]
[1672708432246,3.99,11.246,11.241,0.06087911]
[1672708432458,3.99,11.246,11.24,0.07032222]
[1672708440765,3.99,11.244,11.24,0.07032222]
[1672708440971,3.95,11.242,11.238,0.07012643]
[1672708441186,3.99,11.241,11.236,0.06211829]
[1672708441502,3.99,11.241,11.235,0.06158085]
[1672708443077,3.99,11.244,11.237,3.95]
[1672708443281,3.99,11.244,11.237,4.01629638]
[1672708459468,3.95,11.246,11.239,3.98]
[1672708459680,3.95,11.246,11.239,4.04419194]
[1672708473659,3.95,11.244,11.239,0.06419194]
[1672708473973,3.95,11.244,11.238,4.04984179]
[1672708474496,3.99,11.243,11.238,0.06984179]
[1672708474704,3.99,11.243,11.237,0.06178474]
[1672708479541,3.99,11.241,11.237,0.06178474]
[1672708479751,3.99,11.241,11.235,4.01494717]
[1672708489836,3.95,11.24,11.235,0.06494717]
[1672708493940,3.95,11.237,11.235,0.06494717]
[1672708494151,3.95,11.237,11.232,0.06564767]
[1672708499196,3.99,11.235,11.232,0.06564767]
[1672708499399,3.99,11.235,11.23,0.07128487]
[1672708502874,3.92168683,11.235,11.23,0.07128487]
[1672708505292,3.99,11.231,11.23,0.07128487]
[1672708505606,3.99,11.231,11.227,0.06934759]
[1672708505819,3.99,11.231,11.225,0.06283663]
[1672708506446,3.99,11.232,11.225,4.05283663]
[1672708509070,15.97,11.247,11.23,3.99]
[1672708509278,3.99,11.236,11.235,0.06436968]
[1672708509493,3.99,11.236,11.232,0.06728091]
[1672708513278,3.95,11.239,11.232,4.03728091]
[1672708513490,3.95,11.239,11.232,4.03988695]
[1672708514122,3.99,11.237,11.232,0.06988695]
[1672708514333,3.99,11.237,11.231,4.06140631]
[1672708514540,3.99,11.236,11.231,0.07140631]
[1672708514752,3.99,11.236,11.23,0.0682481]
[1672708517273,3.95,11.235,11.23,0.0682481]
[1672708517486,3.95,11.235,11.228,3.98]
[1672708517487,3.99,11.233,11.229,0.06550594]
[1672708517695,3.99,11.233,11.227,4.05095327]
[1672708521901,3.99,11.233,11.227,3.83407858]
[1672708529360,3.99,11.235,11.229,3.99]
[1672708532619,3.99,11.238,11.231,3.99]
[1672708532827,3.99,11.238,11.231,4.05721944]
[1672708533460,3.99,11.239,11.233,3.99]
[1672708535979,3.800941,11.239,11.233,3.99]
[1672708545760,3.99,11.243,11.236,3.97]
[1672708545966,3.99,11.243,11.237,2.0]
[1672708547019,3.99,11.244,11.238,3.99]
[1672708547649,3.95,11.246,11.239,3.99]
[1672708547859,3.95,11.246,11.239,4.05883267]
[1672708549330,3.99,11.245,11.239,0.06883267]
[1672708549544,3.99,11.245,11.238,4.05409805]
[1672708550807,3.80692647,11.245,11.238,4.05409805]
[1672708558373,3.99,11.239,11.238,0.06409805]
[1672708558584,3.99,11.239,11.235,0.07132214]
[1672708558899,3.99,11.238,11.233,0.06124832]
[1672708562684,3.99,11.236,11.233,0.06124832]
[1672708562996,3.99,11.236,11.231,0.07125629]
[1672708567303,3.95,11.237,11.231,4.06125629]
[1672708567513,3.95,11.237,11.231,3.99]
[1672708577598,3.95,11.237,11.23,0.06423698]
[1672708577599,3.99,11.235,11.23,0.06423698]
[1672708577814,3.99,11.235,11.229,3.98]
[1672708578024,3.99,11.235,11.229,4.04103123]
[1672708581803,3.99,11.233,11.229,0.06103123]
[1672708582014,3.99,11.233,11.227,3.99]
[1672708582015,3.99,11.233,11.227,4.06012578]
[1672708582542,3.99,11.235,11.228,3.99]
[1672708582746,3.99,11.235,11.228,4.05531364]
[1672708584749,3.95,11.236,11.23,3.95]
[1672708586008,3.99,11.238,11.231,3.99]
[1672708586220,3.99,11.238,11.231,4.05799853]
[1672708587374,3.99,11.238,11.231,0.06799853]
[1672708587691,3.95,11.236,11.231,0.06799853]
[1672708587903,3.95,11.236,11.23,4.05577665]
[1672708596834,3.95,11.236,11.23,7.665e-05]
[1672708596835,3.99,11.231,11.23,7.665e-05]
[1672708597046,3.99,11.231,11.223,50.1748]
[1672708597255,3.99,11.229,11.223,50.1748]
[1672708597570,3.99,11.229,11.222,3.95]
[1672708597778,4.05227106,11.229,11.222,4.01143542]
[1672708599044,0.06227106,11.229,11.224,3.97]
[1672708619326,0.06227106,11.229,11.225,3.97]
[1672708627214,3.99,11.236,11.228,3.99]
[1672708627424,3.99,11.237,11.23,3.99]
[1672708628268,3.99,11.237,11.23,4.05629279]
[1672708639715,3.99,11.237,11.231,3.97]
[1672708642032,3.89841023,11.237,11.232,2.0]
[1672708644442,3.99,11.24,11.233,3.97]
[1672708644657,3.99,11.24,11.233,4.03974568]
[1672708645707,3.99,11.238,11.233,0.06974568]
[1672708672091,0.04374288,11.233,11.231,3.99]
[1672708683233,0.04374288,11.233,11.23,3.99]
[1672708684288,0.04374288,11.233,11.231,4.01]
[1672708685863,4.07493314,11.236,11.233,0.15610997]
[1672708686073,4.01,11.236,11.233,0.15610997]
[1672708689754,3.99,11.236,11.233,0.15610997]
[1672708693010,4.0722967,11.238,11.234,4.01]
[1672708695110,3.99,11.237,11.233,0.15610997]
[1672708699418,3.76498222,11.237,11.233,0.15610997]
[1672708707827,3.99,11.235,11.233,0.15610997]
[1672708708039,3.99,11.234,11.231,0.0646158]
[1672708708247,3.99,11.234,11.229,4.01]
[1672708708456,3.99,11.234,11.229,4.07928444]
[1672708714030,3.99,11.234,11.229,0.06928444]
[1672708722332,3.86744375,11.234,11.229,0.06928444]
[1672708729588,4.0,11.23,11.223,53.6431]
[1672708729893,4.0,11.23,11.223,4.01]
[1672708730634,4.06623966,11.23,11.223,4.07506066]
[1672708739776,4.0,11.228,11.223,0.06506066]
[1672708742191,4.0,11.225,11.223,0.06506066]
[1672708742506,4.0,11.225,11.22,0.06658306]
[1672708745973,3.99,11.221,11.22,0.06658306]
[1672708746184,3.99,11.221,11.214,54.0]
[1672708746914,3.99,11.221,11.214,4.0]
[1672708747129,4.0,11.219,11.214,0.06673466]
[1672708747340,4.01,11.217,11.214,0.06673466]
[1672708747550,3.99,11.215,11.212,0.06717863]
[1672708747760,4.01,11.214,11.21,0.06119755]
[1672708747966,4.01,11.214,11.208,0.0617228]
[1672708749439,4.0,11.215,11.208,4.0617228]
[1672708749859,4.06582822,11.216,11.21,4.01]
[1672708752493,4.0,11.215,11.209,4.0]
[1672708752701,4.0,11.214,11.208,0.0617228]
[1672708754066,4.01,11.212,11.208,0.0617228]
[1672708758166,3.99,11.213,11.208,0.0617228]
[1672708758378,4.0,11.214,11.208,0.0617228]
[1672708759426,4.0,11.212,11.208,0.0617228]
[1672708760372,4.0,11.209,11.201,4.0]
[1672708760585,4.0,11.208,11.202,2.0]
[1672708760794,3.98,11.212,11.205,4.01]
[1672708761424,4.04321293,11.212,11.205,4.01]
[1672708761631,4.04321293,11.212,11.205,4.07883285]
[1672708764052,4.0,11.207,11.205,0.06883285]
[1672708764261,4.0,11.207,11.202,0.06172241]
[1672708764471,4.0,11.207,11.201,0.06475006]
[1672708766468,4.01,11.205,11.201,0.06475006]
[1672708766784,3.98,11.203,11.201,0.06475006]
[1672708766994,3.98,11.203,11.198,0.06243419]
[1672708767204,4.01,11.202,11.197,0.07008747]
[1672708767520,4.0,11.199,11.196,0.06621625]
[1672708767729,4.0,11.199,11.194,50.0659822]
[1672708768672,4.0,11.198,11.194,50.0659822]
[1672708768878,4.0,11.199,11.194,50.0659822]
[1672708770250,3.98,11.195,11.194,0.0659822]
[1672708770459,3.98,11.195,11.188,4.01]
[1672708771406,4.04128178,11.195,11.188,4.07315561]
[1672708772351,0.06128178,11.195,11.191,4.01]
[1672708773197,4.05128178,11.195,11.188,4.07315561]
[1672708775192,0.06128178,11.195,11.19,4.01]
[1672708776138,0.06128178,11.195,11.191,4.01]
[1672708779295,0.06128178,11.195,11.19,8.06]
[1672708782865,0.06128178,11.195,11.189,8.02]
[1672708784443,8.08,11.197,11.195,0.02680769]
[1672708785280,2.0,11.204,11.195,0.02680769]
[1672708785281,8.08,11.196,11.195,0.02680769]
[1672708788123,8.08,11.196,11.192,0.06349591]
[1672708789695,8.08,11.197,11.192,0.06349591]
[1672708790432,8.08,11.195,11.192,0.06349591]
[1672708790642,8.08,11.195,11.19,0.0694467]
[1672708790849,8.08,11.195,11.187,8.03]
[1672708790850,8.08,11.195,11.189,0.0654516]
[1672708793268,0.06964513,11.196,11.189,8.1254516]
[1672708794322,0.06964513,11.196,11.19,8.03]
[1672708795373,0.06964513,11.196,11.192,8.02]
[1672708797060,0.06964513,11.196,11.19,8.02]
[1672708799262,8.14964513,11.196,11.189,0.0654516]
[1672708800208,8.07034825,11.196,11.189,0.0654516]
[1672708801158,8.06,11.191,11.189,0.0654516]
[1672708801370,8.06,11.191,11.186,0.06617813]
[1672708801578,8.08,11.189,11.185,0.06341204]
[1672708801785,8.08,11.187,11.179,8.02]
[1672708801999,8.15004884,11.187,11.182,3.28146467]
[1672708802522,8.15004884,11.187,11.18,3.28146467]
[1672708803371,8.08,11.186,11.18,3.28146467]
[1672708803890,8.08,11.186,11.179,3.34925606]
[1672708805780,8.08,11.184,11.179,3.34925606]
[1672708806410,8.08,11.184,11.179,0.06779139]
[1672708806622,8.15004884,11.187,11.179,8.09779139]
[1672708807356,8.15004884,11.187,11.18,3.28146467]
[1672708809352,8.08,11.186,11.18,3.28146467]
[1672708809985,8.08,11.186,11.179,3.34925606]
[1672708810719,8.08,11.184,11.179,3.34925606]
[1672708811342,8.06,11.182,11.179,3.34925606]
[1672708811557,32.39004884,11.187,11.177,3.34447909]
[1672708811558,8.08,11.18,11.177,3.34447909]
[1672708811769,8.06,11.178,11.168,8.02]
[1672708812082,8.08,11.176,11.171,3.28433409]
[1672708812295,8.08,11.176,11.169,3.28433409]
[1672708812506,8.08,11.178,11.17,8.08]
[1672708812820,8.14480877,11.178,11.17,8.14386007]
[1672708813868,32.3,11.197,11.174,50.0]
[1672708814078,32.3,11.197,11.167,32.32]
[1672708814079,8.06,11.187,11.178,8.02]
[1672708814920,0.06136781,11.186,11.179,0.06850663]
[1672708815131,8.08,11.185,11.179,0.06850663]
[1672708815335,2.06136781,11.186,11.179,0.06850663]
[1672708815336,8.08,11.182,11.179,0.06850663]
[1672708815550,8.08,11.18,11.177,0.06183047]
[1672708815757,8.08,11.178,11.175,0.06442071]
[1672708816071,8.08,11.178,11.173,0.06518462]
[1672708816287,8.08,11.178,11.172,0.06683277]
[1672708817443,8.08,11.173,11.172,0.06683277]
[1672708817650,8.08,11.173,11.169,0.06830071]
[1672708817863,8.08,11.172,11.167,0.06113333]
[1672708818075,8.15086069,11.173,11.166,0.06367628]
[1672708818284,0.06873078,11.173,11.166,8.09856354]
[1672708819650,8.14873078,11.173,11.166,0.06856354]
[1672708820276,8.08,11.171,11.166,0.06856354]
[1672708820489,8.14873078,11.173,11.166,0.06856354]
[1672708820699,0.06873078,11.173,11.166,8.12856354]
[1672708821333,8.14873078,11.173,11.166,0.06856354]
[1672708823646,0.06873078,11.173,11.166,8.14856354]
[1672708824065,0.06873078,11.173,11.169,8.02]
[1672708824484,0.06873078,11.173,11.171,8.03]
[1672708824694,0.07002667,11.176,11.171,8.03]
[1672708824905,0.07041008,11.177,11.171,8.03]
[1672708825439,0.07041008,11.177,11.17,0.07031598]
[1672708826693,8.08041008,11.177,11.17,0.07031598]
[1672708827637,0.07041008,11.177,11.17,0.07031598]
[1672708828688,7.99,11.18,11.177,0.01510148]
[1672708828893,2.0,11.182,11.177,0.01510148]
[1672708829111,8.01,11.178,11.177,0.01510148]
[1672708832787,8.0712406,11.181,11.177,0.01510148]
[1672708833205,8.0,11.179,11.177,0.01510148]
[1672708835200,8.0812406,11.181,11.177,0.01510148]
[1672708837730,0.0712406,11.181,11.177,0.01510148]
[1672708838256,0.0712406,11.181,11.177,7.95510148]
[1672708838570,8.02,11.188,11.178,2.0]
[1672708839409,0.06435818,11.187,11.179,0.06335945]
[1672708839620,0.06435818,11.187,11.18,8.0]
[1672708845401,0.06435818,11.187,11.179,0.06335945]
[1672708851080,8.01,11.189,11.187,0.06822966]
[1672708852230,8.01,11.189,11.184,0.06700946]
[1672708852861,8.01,11.189,11.184,9.46e-06]
[1672708853177,2.0,11.188,11.178,9.95]
[1672708854228,0.06647588,11.187,11.179,0.06012022]
[1672708862951,7.99,11.181,11.177,0.01510148]
[1672708863161,8.01,11.179,11.177,0.01510148]
[1672708864839,8.01,11.179,11.174,0.06400736]
[1672708865784,8.0,11.181,11.174,0.06400736]
[1672708866313,8.06530671,11.182,11.174,0.06400736]
[1672708866835,8.0,11.181,11.174,0.06400736]
[1672708869671,8.02,11.179,11.174,0.06400736]
[1672708871561,49.99993334,11.175,11.16,7.95]
[1672708871770,8.0,11.17,11.159,8.0]
[1672708872186,8.01,11.165,11.153,53.0774]
[1672708872397,32.08,11.172,11.153,53.0774]
[1672708872612,8.01,11.162,11.159,0.06825359]
[1672708872816,8.02,11.161,11.157,0.06851037]
[1672708873031,8.02,11.161,11.155,0.06005874]
[1672708873347,8.01,11.159,11.154,0.06024655]
[1672708873552,2.0,11.158,11.153,0.06469848]
[1672708873769,8.01,11.154,11.144,50.0]
[1672708874081,8.02,11.15,11.144,50.0]
[1672708874289,8.01,11.148,11.137,8.0]
[1672708874502,8.0,11.146,11.135,8.0]
[1672708874707,8.0,11.146,11.136,7.99]
[1672708874920,0.06678228,11.145,11.137,0.060374]
[1672708875130,0.06678228,11.145,11.139,8.0]
[1672708875336,0.06678228,11.145,11.138,8.02]
[1672708876914,0.06678228,11.145,11.137,0.060374]
[1672708877546,0.06678228,11.145,11.139,8.0]
[1672708879443,2.0,11.156,11.144,8.0]
[1672708879652,8.01,11.155,11.146,7.95]
[1672708879864,2.0,11.154,11.146,7.95]
[1672708880496,2.06081927,11.154,11.146,8.01793636]
[1672708881541,0.06081927,11.154,11.146,8.01793636]
[1672708881751,0.06081927,11.154,11.148,7.94]
[1672708883119,8.01,11.153,11.146,0.06793636]
[1672708883438,2.0,11.152,11.146,0.06793636]
[1672708883645,57.99993334,11.147,11.113,82.12]
[1672708883856,2.0,11.152,11.114,50.0]
[1672708883857,49.99993334,11.135,11.114,50.0]
[1672708884167,8.01,11.136,11.125,7.99]
[1672708884382,2.0,11.132,11.125,7.99]
[1672708884595,2.06399021,11.132,11.125,8.05444461]
[1672708884912,2.06399021,11.132,11.128,8.02]
[1672708885119,0.06399021,11.132,11.131,7.99]
[1672708885329,0.06189204,11.135,11.128,8.08043719]
[1672708885536,0.06876892,11.135,11.128,8.08246498]
[1672708885961,0.06876892,11.135,11.13,7.95]
[1672708886275,8.0,11.149,11.134,2.0]
[1672708886485,10.01,11.152,11.139,8.02]
[1672708886900,8.01,11.152,11.139,8.02]
[1672708887110,8.0,11.156,11.145,8.0]
[1672708887325,0.06903554,11.154,11.147,0.06953023]
[1672708889429,0.06903554,11.154,11.148,7.99]
[1672708889849,0.06903554,11.154,11.147,0.06953023]
[1672708890478,8.01,11.151,11.147,0.06953023]
[1672708891111,0.08375927,11.147,11.142,8.02]
[1672708891848,0.08375927,11.147,11.143,7.94]
[1672708892056,2.0,11.152,11.14,2.0]
[1672708892057,7.99,11.156,11.146,8.02]
[1672708892266,2.0,11.155,11.146,8.02]
[1672708892582,2.0,11.155,11.144,10.0]
[1672708893109,0.06783533,11.153,11.146,0.06802962]
[1672708894055,7.99,11.152,11.146,0.06802962]
[1672708899100,8.0,11.151,11.146,0.06802962]
[1672708899305,7.99,11.149,11.146,0.06802962]
[1672708899518,7.99,11.149,11.144,0.0643109]
[1672708899730,7.99,11.149,11.143,0.07006286]
[1672708899934,7.99,11.149,11.142,0.06409358]
[1672708902779,8.0,11.146,11.142,0.06409358]
[1672708903410,8.01,11.145,11.142,0.06409358]
[1672708903613,8.01,11.145,11.14,0.06465614]
[1672708903825,8.01,11.145,11.136,2.0]
[1672708903826,8.01,11.145,11.139,0.0648546]
[1672708904037,8.01,11.145,11.138,0.0655467]
[1672708904776,8.0,11.14,11.138,0.0655467]
[1672708904986,8.0,11.139,11.135,0.06022858]
[1672708905196,8.0,11.139,11.133,0.06157311]
[1672708905509,8.0,11.139,11.132,0.06286542]
[1672708906458,8.07309886,11.14,11.132,0.06286542]
[1672708907088,0.06309886,11.14,11.132,0.06286542]
[1672708912129,12.12,11.139,11.132,0.06286542]
[1672708912437,49.99993334,11.135,11.132,0.00286542]
[1672708912646,2.0,11.134,11.119,12.12]
[1672708913281,12.12,11.133,11.12,51.8024]
[1672708913495,0.06326121,11.13,11.123,0.07024928]
[1672708913911,0.06326121,11.13,11.123,50.07024928]
[1672708914119,2.0,11.134,11.124,2.0]
[1672708914332,2.0,11.135,11.124,2.0]
[1672708915071,0.06772918,11.133,11.126,0.06210286]
[1672708917485,2.918e-05,11.133,11.126,0.06210286]
[1672708917803,2.918e-05,11.133,11.124,2.0]
[1672708917804,12.12,11.147,11.133,2.0]
[1672708918013,2.0,11.146,11.133,2.0]
[1672708918224,2.0,11.146,11.133,52.0]
[1672708918954,0.07091367,11.143,11.136,0.06792428]
[1672708924633,12.19091367,11.143,11.136,0.06792428]
[1672708928200,12.01,11.14,11.128,48.5654]
[1672708928522,2.0,11.139,11.128,48.5654]
[1672708929259,0.07018811,11.137,11.13,0.06335713]
[1672708932090,12.12,11.136,11.13,0.06335713]
[1672708937765,0.07018811,11.137,11.13,0.06335713]
[1672708940923,62.11993334,11.135,11.13,0.06335713]
[1672708941128,12.12,11.133,11.13,0.06335713]
[1672708941342,2.0,11.132,11.116,12.12]
[1672708942178,51.0254,11.132,11.116,12.12]
[1672708942395,0.061022,11.128,11.12,0.06050034]
[1672708951750,0.061022,11.128,11.121,8.08]
[1672708956585,0.061022,11.128,11.122,8.08]
[1672708956796,49.5601,11.136,11.117,2.0]
[1672708956797,8.07,11.136,11.128,0.1774229]
[1672708957845,8.13487407,11.136,11.128,0.24629055]
[1672708964880,0.06487407,11.136,11.128,8.31629055]
[1672708965411,0.06487407,11.136,11.129,8.09]
[1672708965618,49.99993334,11.145,11.134,8.09]
[1672708965619,8.05,11.145,11.134,8.09]
[1672708965832,655.9,11.163,11.137,8.08]
[1672708965833,8.09,11.148,11.137,8.08]
[1672708966357,8.09,11.145,11.134,8.09]
[1672708966563,8.07,11.141,11.132,8.09]
[1672708966778,8.07,11.141,11.134,0.06827049]
[1672708966988,0.06060609,11.14,11.134,0.06827049]
[1672708967621,8.09,11.138,11.134,0.06827049]
[1672708970030,8.09,11.135,11.134,7.049e-05]
[1672708970241,8.09,11.135,11.128,0.1774229]
[1672708971190,0.06218234,11.135,11.128,0.2444963]
[1672708972659,8.11218234,11.135,11.128,0.2444963]
[1672708977598,8.15218234,11.135,11.128,0.2444963]
[1672708978964,8.09,11.133,11.128,0.2444963]
[1672708979381,0.06218234,11.135,11.128,0.2444963]
[1672708991888,8.06,11.136,11.135,0.0892417]
[1672708992104,8.07,11.14,11.135,0.0892417]
[1672708992629,8.05,11.139,11.135,0.0892417]
[1672708998612,8.09,11.148,11.137,8.08]
[1672708998829,8.07,11.15,11.138,10.09]
[1672708999144,8.05,11.148,11.138,10.09]
[1672708999352,8.05,11.148,11.139,2.0]
[1672708999668,8.05,11.148,11.14,0.06540811]
[1672708999880,0.06539752,11.147,11.14,0.06540811]
[1672709000298,0.06539752,11.147,11.14,8.15540811]
[1672709000609,0.06539752,11.147,11.142,8.08]
[1672709000823,8.09,11.154,11.143,2.0]
[1672709001032,8.09,11.149,11.143,2.0]
[1672709001243,2.0,11.153,11.141,2.0]
[1672709001244,8.07,11.148,11.141,2.0]
[1672709001876,8.07,11.149,11.141,2.06098379]
[1672709003030,8.07,11.151,11.141,2.06098379]
[1672709004396,8.06,11.152,11.141,10.13098379]
[1672709004714,8.06,11.152,11.141,10.0435694]
[1672709005869,0.06086945,11.15,11.143,0.06339487]
[1672709008179,0.06086945,11.15,11.146,8.09]
[1672709008395,8.05,11.158,11.147,10.08]
[1672709009448,8.05,11.158,11.149,0.06974906]
[1672709010919,8.09,11.155,11.149,0.06974906]
[1672709011125,8.09,11.155,11.148,2.06400549]
[1672709011863,8.09,11.155,11.148,0.06400549]
[1672709013019,8.06,11.158,11.148,0.06400549]
[1672709013232,8.06,11.158,11.149,0.06504783]
[1672709022472,53.4962,11.162,11.149,0.06504783]
[1672709022473,8.06,11.156,11.149,0.06504783]
[1672709022683,8.06,11.156,11.149,0.06326305]
[1672709022894,8.05,11.151,11.133,50.0]
[1672709023108,8.09,11.15,11.139,8.08]
[1672709023846,8.09,11.15,11.141,0.06574148]
[1672709024055,0.06458218,11.148,11.141,0.06574148]
[1672709026158,0.06458218,11.148,11.141,8.14574148]
[1672709027517,0.06458218,11.148,11.141,0.06574148]
[1672709031519,8.15458218,11.148,11.141,0.06574148]
[1672709032037,8.06,11.144,11.141,4.148e-05]
[1672709032253,8.09,11.142,11.135,0.0892417]
[1672709033202,8.15763447,11.142,11.135,0.1573144]
[1672709034464,8.06,11.139,11.135,0.1573144]
[1672709035928,8.09,11.141,11.135,0.1573144]
[1672709038344,8.06,11.139,11.135,0.1573144]
[1672709041604,8.09,11.137,11.135,0.1573144]
[1672709041815,8.09,11.137,11.135,0.0892417]
[1672709042026,60.08993334,11.136,11.132,0.07104046]
[1672709042340,8.09,11.134,11.132,0.07104046]
[1672709042546,8.09,11.134,11.129,0.06653971]
[1672709047069,8.09,11.13,11.119,8.09]
[1672709047275,8.05,11.129,11.119,8.09]
[1672709048223,0.06276463,11.128,11.12,0.06946611]
[1672709050745,0.06276463,11.128,11.121,8.08]
[1672709052011,0.06276463,11.128,11.12,8.13946611]
[1672709056531,8.05,11.123,11.12,0.06946611]
[1672709056742,8.07,11.122,11.118,0.06181788]
[1672709056952,8.07,11.122,11.116,0.07087668]
[1672709057163,8.07,11.122,11.115,0.07073073]
[1672709057373,8.13010995,11.122,11.115,0.06754233]
[1672709057688,8.09,11.119,11.115,0.06754233]
[1672709058422,2.0,11.118,11.108,8.09]
[1672709059364,0.06483954,11.117,11.109,0.06203852]
[1672709062107,8.15483954,11.117,11.109,0.06203852]
[1672709062522,58.05993334,11.115,11.109,0.06203852]
[1672709062734,8.05,11.11,11.093,8.08]
[1672709062945,8.09,11.103,11.094,52.33]
[1672709063154,2.0,11.109,11.086,8.09]
[1672709063155,8.09,11.098,11.086,8.09]
[1672709063361,32.36,11.104,11.084,67.67]
[1672709063362,32.36,11.104,11.085,52.33]
[1672709063789,0.0692474,11.098,11.091,0.07066098]
[1672709063995,8.09,11.096,11.091,0.06047432]
[1672709064313,8.06,11.095,11.091,0.06047432]
[1672709064521,8.09,11.092,11.091,0.06047432]
[1672709064732,8.09,11.092,11.088,0.06892259]
[1672709064938,0.07042729,11.094,11.087,8.08]
[1672709065158,0.06018772,11.094,11.089,8.09]
[1672709065363,8.07,11.1,11.09,8.08]
[1672709065576,8.09,11.098,11.087,8.09]
[1672709065785,8.09,11.099,11.088,8.09]
[1672709066101,2.0,11.103,11.088,10.09]
[1672709066302,0.06474899,11.099,11.092,0.07048446]
[1672709066512,0.06995218,11.099,11.093,8.08]
[1672709066723,8.05,11.106,11.094,8.09]
[1672709067144,8.07,11.108,11.097,8.09]
[1672709067359,8.07,11.108,11.098,8.09]
[1672709067779,8.07,11.108,11.098,2.0]
[1672709067993,0.06828338,11.107,11.099,0.06401071]
[1672709068624,0.06828338,11.107,11.1,8.08]
[1672709068939,0.06828338,11.107,11.101,8.07]
[1672709069144,8.06,11.117,11.106,8.09]
[1672709069988,8.09,11.119,11.108,8.07]
[1672709070198,0.06018998,11.117,11.11,0.06533482]
[1672709070405,8.11018998,11.117,11.11,0.06533482]
[1672709071778,0.06018998,11.117,11.111,8.08]
[1672709072405,0.06018998,11.117,11.11,0.06533482]
[1672709072927,8.09,11.114,11.11,0.06533482]
[1672709073143,8.09,11.113,11.11,0.06533482]
[1672709073458,8.09,11.113,11.108,0.06964628]
[1672709073663,8.09,11.113,11.107,0.06179045]
[1672709073877,8.07,11.111,11.106,0.0617005]
[1672709075352,8.05,11.113,11.106,0.0617005]
[1672709075874,8.07,11.112,11.106,0.0617005]
[1672709076292,8.05,11.11,11.106,0.0617005]
[1672709077975,8.07,11.109,11.106,0.0617005]
[1672709078186,8.07,11.109,11.104,0.06966537]
[1672709078393,8.07,11.109,11.103,0.0621142]
[1672709078603,8.07,11.109,11.102,0.07046868]
[1672709078814,8.15483798,11.11,11.102,0.07046868]
[1672709079024,8.16109572,11.11,11.102,0.07064349]
[1672709081020,0.07109572,11.11,11.102,0.07064349]
[1672709082387,8.09,11.108,11.102,0.07064349]
[1672709082593,8.09,11.107,11.102,0.07064349]
[1672709083335,8.06,11.105,11.102,0.07064349]
[1672709083545,8.06,11.105,11.1,0.07101104]
[1672709083750,8.06,11.105,11.099,0.06880264]
[1672709083962,8.12054144,11.106,11.098,0.06180143]
[1672709084175,0.07054144,11.106,11.098,0.06180143]
[1672709086275,0.07054144,11.106,11.1,8.09]
[1672709088688,1228.91262278,11.161,11.101,2.0]
[1672709088903,8.09,11.118,11.107,8.08]
[1672709089322,8.09,11.116,11.107,8.08]
[1672709089531,2.0,11.115,11.107,8.08]
[1672709089744,2.06156777,11.115,11.107,8.14830857]
[1672709090158,8.06,11.111,11.107,0.06830857]
[1672709090898,8.12,11.111,11.107,0.06830857]
[1672709091108,8.12,11.109,11.107,0.06830857]